[Event "*** Titled Tuesday Blitz"]
[Site "Chess.com"]
[Date "2021.03.02"]
[Round "5"]
[White "night_player"]
[Black "dbrankovic68"]
[Result "0-1"]
[WhiteElo "2176"]
[BlackElo "2472"]
[TimeControl "180+1"]
[EndTime "10:53:41 PST"]
[Termination "dbrankovic68 won by resignation"]

1. e4 {[%clk 0:03:00.9]} 1... c5 {[%clk 0:02:59.2]} 2. c3 {[%clk 0:03:00.8]}
2... d6 {[%clk 0:02:55.3]} 3. d4 {[%clk 0:03:00.2]} 3... Nf6 {[%clk 0:02:56.2]}
4. Bd3 {[%clk 0:02:59.6]} 4... Nc6 {[%clk 0:02:56]} 5. Nf3 {[%clk 0:02:57.8]}
5... cxd4 {[%clk 0:02:54.1]} 6. cxd4 {[%clk 0:02:57.8]} 6... g6 {[%clk
0:02:54.7]} 7. h3 {[%clk 0:02:57.2]} 7... Bg7 {[%clk 0:02:55.3]} 8. O-O {[%clk
0:02:57.7]} 8... O-O {[%clk 0:02:55.9]} 9. Nc3 {[%clk 0:02:58]} 9... e5 {[%clk
0:02:54.7]} 10. d5 {[%clk 0:02:53.1]} 10... Nd4 {[%clk 0:02:54.8]} 11. Nxd4
{[%clk 0:02:47.3]} 11... exd4 {[%clk 0:02:54.7]} 12. Ne2 {[%clk 0:02:48]} 12...
Nd7 {[%clk 0:02:55]} 13. b3 {[%clk 0:02:34.3]} 13... Re8 {[%clk 0:02:49.7]} 14.
Bb2 {[%clk 0:02:33.6]} 14... Qb6 {[%clk 0:02:40]} 15. Qd2 {[%clk 0:02:11.1]}
15... Nc5 {[%clk 0:02:39.7]} 16. f3 {[%clk 0:01:50.8]} 16... Bd7 {[%clk
0:02:36.5]} 17. Bc4 {[%clk 0:01:43.8]} 17... d3 {[%clk 0:02:31.7]} 18. Nd4
{[%clk 0:01:29.8]} 18... Nxe4 {[%clk 0:02:13.9]} 19. Qxd3 {[%clk 0:01:26.1]}
19... Ng3 {[%clk 0:02:10.9]} 20. Rfd1 {[%clk 0:01:18.5]} 20... Ne2+ {[%clk
0:01:51.9]} 21. Kh1 {[%clk 0:01:16.8]} 21... Nxd4 {[%clk 0:01:52.2]} 22. Bxd4
{[%clk 0:01:16.4]} 22... Bxd4 {[%clk 0:01:52.6]} 23. Qxd4 {[%clk 0:01:17.3]}
23... Re1+ {[%clk 0:01:51.7]} 24. Rxe1 {[%clk 0:00:37.8]} 24... Qxd4 {[%clk
0:01:50.1]} 25. Rad1 {[%clk 0:00:38]} 25... Qf6 {[%clk 0:01:49.1]} 26. Re4
{[%clk 0:00:31.8]} 26... Re8 {[%clk 0:01:47.3]} 27. Rde1 {[%clk 0:00:29.8]}
27... Rxe4 {[%clk 0:01:47.7]} 28. Rxe4 {[%clk 0:00:29.9]} 28... b5 {[%clk
0:01:45.4]} 29. Bf1 {[%clk 0:00:23.7]} 29... Kf8 {[%clk 0:01:41.1]} 30. Re2
{[%clk 0:00:17.2]} 30... b4 {[%clk 0:01:37.4]} 31. Rd2 {[%clk 0:00:17.4]} 31...
Qa1 {[%clk 0:01:35]} 32. Kg1 {[%clk 0:00:16.1]} 32... Bb5 {[%clk 0:01:34.7]} 33.
Rf2 {[%clk 0:00:16.7]} 33... Bxf1 {[%clk 0:01:33.7]} 34. Rxf1 {[%clk 0:00:16.7]}
34... Qxa2 {[%clk 0:01:34.1]} 0-1

[Event "*** Titled Tuesday Blitz"]
[Site "Chess.com"]
[Date "2021.03.02"]
[Round "5"]
[White "losersgame"]
[Black "karinachess1"]
[Result "0-1"]
[WhiteElo "2325"]
[BlackElo "2514"]
[TimeControl "180+1"]
[EndTime "10:53:45 PST"]
[Termination "karinachess1 won on time"]

1. d4 {[%clk 0:03:00.9]} 1... Nf6 {[%clk 0:02:58.8]} 2. c4 {[%clk 0:03:00.5]}
2... g6 {[%clk 0:02:56.5]} 3. Nc3 {[%clk 0:03:00.2]} 3... Bg7 {[%clk 0:02:56.4]}
4. e4 {[%clk 0:02:59.7]} 4... d6 {[%clk 0:02:56.1]} 5. f3 {[%clk 0:02:59.4]}
5... O-O {[%clk 0:02:55]} 6. Be3 {[%clk 0:02:58.9]} 6... c6 {[%clk 0:02:55]} 7.
Bd3 {[%clk 0:02:57.5]} 7... a6 {[%clk 0:02:54.1]} 8. a4 {[%clk 0:02:56]} 8... a5
{[%clk 0:02:49.5]} 9. Nge2 {[%clk 0:02:55.3]} 9... e5 {[%clk 0:02:36.1]} 10. d5
{[%clk 0:02:54.8]} 10... Na6 {[%clk 0:02:29.8]} 11. Rc1 {[%clk 0:02:49.5]} 11...
Nd7 {[%clk 0:02:19.4]} 12. O-O {[%clk 0:02:42.4]} 12... Ndc5 {[%clk 0:02:14]}
13. Bb1 {[%clk 0:02:39.5]} 13... f5 {[%clk 0:02:02.7]} 14. exf5 {[%clk
0:02:34.7]} 14... gxf5 {[%clk 0:01:52.4]} 15. f4 {[%clk 0:02:34.1]} 15... e4
{[%clk 0:01:48.4]} 16. Nd4 {[%clk 0:02:23.6]} 16... Nb4 {[%clk 0:01:43]} 17. g4
{[%clk 0:01:04.6]} 17... fxg4 {[%clk 0:01:27.4]} 18. f5 {[%clk 0:00:16.9]} 18...
Qh4 {[%clk 0:01:25.1]} 19. Nxe4 {[%clk 0:00:11.6]} 19... Nxe4 {[%clk 0:01:24.9]}
20. Bxe4 {[%clk 0:00:11.3]} 20... g3 {[%clk 0:01:25.2]} 21. Qd2 {[%clk
0:00:02.7]} 21... gxh2+ {[%clk 0:01:15]} 22. Qxh2 {[%clk 0:00:02.3]} 22... Qxe4
{[%clk 0:01:15.1]} 0-1

[Event "*** Titled Tuesday Blitz"]
[Site "Chess.com"]
[Date "2021.03.02"]
[Round "5"]
[White "Piacramling"]
[Black "andriipalchuk"]
[Result "0-1"]
[WhiteElo "2293"]
[BlackElo "2542"]
[TimeControl "180+1"]
[EndTime "10:53:45 PST"]
[Termination "andriipalchuk won by resignation"]

1. d4 {[%clk 0:03:00.9]} 1... Nf6 {[%clk 0:02:58.3]} 2. c4 {[%clk 0:03:00.9]}
2... e6 {[%clk 0:02:58.2]} 3. Nc3 {[%clk 0:03:00.5]} 3... Bb4 {[%clk 0:02:58.4]}
4. e3 {[%clk 0:03:00.7]} 4... O-O {[%clk 0:02:57.2]} 5. Ne2 {[%clk 0:03:00.7]}
5... d5 {[%clk 0:02:54]} 6. a3 {[%clk 0:03:00.2]} 6... Be7 {[%clk 0:02:54.4]} 7.
cxd5 {[%clk 0:02:59.4]} 7... exd5 {[%clk 0:02:54.2]} 8. Nf4 {[%clk 0:02:59.4]}
8... c6 {[%clk 0:02:53.9]} 9. Bd3 {[%clk 0:02:59.3]} 9... Re8 {[%clk 0:02:53.5]}
10. O-O {[%clk 0:02:58.6]} 10... Nbd7 {[%clk 0:02:54.2]} 11. b4 {[%clk
0:02:54.6]} 11... b5 {[%clk 0:02:40.9]} 12. Bd2 {[%clk 0:02:47.1]} 12... Nb6
{[%clk 0:02:40.5]} 13. a4 {[%clk 0:02:46]} 13... a6 {[%clk 0:02:36]} 14. axb5
{[%clk 0:02:37.7]} 14... axb5 {[%clk 0:02:34.8]} 15. Rxa8 {[%clk 0:02:37.1]}
15... Nxa8 {[%clk 0:02:35.7]} 16. Qb1 {[%clk 0:02:03.8]} 16... Nb6 {[%clk
0:02:34.1]} 17. Rc1 {[%clk 0:02:03.3]} 17... Nc4 {[%clk 0:02:33.7]} 18. Be1
{[%clk 0:02:02.6]} 18... Bd6 {[%clk 0:02:26.7]} 19. g3 {[%clk 0:01:51.9]} 19...
h6 {[%clk 0:02:19.5]} 20. Bf1 {[%clk 0:01:50.6]} 20... Bd7 {[%clk 0:02:13.8]}
21. Bg2 {[%clk 0:01:49.1]} 21... Ng4 {[%clk 0:02:09.4]} 22. Nce2 {[%clk
0:00:57.5]} 22... Qe7 {[%clk 0:02:04.1]} 23. Qb3 {[%clk 0:00:42.7]} 23... Ra8
{[%clk 0:02:00.7]} 24. Nd3 {[%clk 0:00:37.5]} 24... Ra3 {[%clk 0:01:56.7]} 25.
Qb1 {[%clk 0:00:37.2]} 25... Ngxe3 {[%clk 0:01:56.1]} 26. fxe3 {[%clk
0:00:17.8]} 26... Qxe3+ {[%clk 0:01:53.6]} 27. Nf2 {[%clk 0:00:16.9]} 27... Qxe2
{[%clk 0:01:53.4]} 28. Rc2 {[%clk 0:00:16.4]} 28... Qe7 {[%clk 0:01:50]} 29. Qc1
{[%clk 0:00:15.7]} 29... Bf5 {[%clk 0:01:43.1]} 30. Rc3 {[%clk 0:00:12.8]} 30...
Ra2 {[%clk 0:01:41]} 31. Qd1 {[%clk 0:00:09.4]} 31... Bxb4 {[%clk 0:01:40.5]}
32. Rf3 {[%clk 0:00:07.5]} 0-1

[Event "*** Titled Tuesday Blitz"]
[Site "Chess.com"]
[Date "2021.03.02"]
[Round "5"]
[White "juancruzarias"]
[Black "JulianProleiko"]
[Result "1-0"]
[WhiteElo "2632"]
[BlackElo "2416"]
[TimeControl "180+1"]
[EndTime "10:53:46 PST"]
[Termination "juancruzarias won by resignation"]

1. d4 {[%clk 0:03:00.9]} 1... Nf6 {[%clk 0:02:21.6]} 2. Nd2 {[%clk 0:02:59.1]}
2... d5 {[%clk 0:02:21.6]} 3. Ngf3 {[%clk 0:02:56.9]} 3... c5 {[%clk 0:02:21.5]}
4. e3 {[%clk 0:02:52.8]} 4... g6 {[%clk 0:02:14.5]} 5. c3 {[%clk 0:02:51.9]}
5... Bg7 {[%clk 0:02:14.5]} 6. Bd3 {[%clk 0:02:50.4]} 6... O-O {[%clk
0:02:14.6]} 7. Ne5 {[%clk 0:02:43]} 7... b6 {[%clk 0:02:14.5]} 8. Qe2 {[%clk
0:02:40.1]} 8... Qc7 {[%clk 0:02:07.5]} 9. O-O {[%clk 0:02:37.4]} 9... Nc6
{[%clk 0:02:07.5]} 10. f4 {[%clk 0:02:35.8]} 10... Bf5 {[%clk 0:02:02.1]} 11.
Bxf5 {[%clk 0:02:35.1]} 11... gxf5 {[%clk 0:02:03]} 12. Kh1 {[%clk 0:02:35.6]}
12... e6 {[%clk 0:02:01.2]} 13. Rg1 {[%clk 0:02:35]} 13... Kh8 {[%clk
0:01:59.6]} 14. h3 {[%clk 0:02:04.6]} 14... Ne4 {[%clk 0:01:58.8]} 15. Nxe4
{[%clk 0:02:04.3]} 15... fxe4 {[%clk 0:01:57.3]} 16. Nxc6 {[%clk 0:02:04.7]}
16... Qxc6 {[%clk 0:01:57.4]} 17. Bd2 {[%clk 0:02:05.1]} 17... cxd4 {[%clk
0:01:51.7]} 18. exd4 {[%clk 0:02:03.9]} 18... b5 {[%clk 0:01:45.7]} 19. a3
{[%clk 0:02:03.1]} 19... Qc4 {[%clk 0:01:29.7]} 20. Qf2 {[%clk 0:01:56.6]} 20...
f6 {[%clk 0:01:20.3]} 21. f5 {[%clk 0:01:54.5]} 21... e5 {[%clk 0:01:08.3]} 22.
Be3 {[%clk 0:01:53.8]} 22... a5 {[%clk 0:01:05.5]} 23. Rac1 {[%clk 0:01:43]}
23... Rac8 {[%clk 0:01:00.3]} 24. g4 {[%clk 0:01:39.1]} 24... Qb3 {[%clk
0:00:55.8]} 25. g5 {[%clk 0:01:25.2]} 25... fxg5 {[%clk 0:00:48.8]} 26. Rxg5
{[%clk 0:01:23.4]} 26... Bf6 {[%clk 0:00:47.1]} 27. dxe5 {[%clk 0:01:15.5]}
27... Bxe5 {[%clk 0:00:43.8]} 28. Bd4 {[%clk 0:01:13.2]} 28... Bf6 {[%clk
0:00:39.7]} 29. Rcg1 {[%clk 0:01:11.9]} 29... Qc4 {[%clk 0:00:34.2]} 30. Rg8+
{[%clk 0:01:10.2]} 30... Rxg8 {[%clk 0:00:29.8]} 31. Bxf6+ {[%clk 0:01:10.8]}
31... Rg7 {[%clk 0:00:30.7]} 32. Bxg7+ {[%clk 0:01:11.3]} 32... Kg8 {[%clk
0:00:31]} 33. Bd4+ {[%clk 0:01:11.9]} 33... Kf7 {[%clk 0:00:31.9]} 34. Qg3
{[%clk 0:01:12.5]} 1-0

[Event "*** Titled Tuesday Blitz"]
[Site "Chess.com"]
[Date "2021.03.02"]
[Round "5"]
[White "Msb2"]
[Black "krzyzan94"]
[Result "1-0"]
[WhiteElo "2892"]
[BlackElo "2716"]
[TimeControl "180+1"]
[EndTime "10:53:51 PST"]
[Termination "Msb2 won by resignation"]

1. d4 {[%clk 0:03:00.9]} 1... Nf6 {[%clk 0:02:59.4]} 2. Nf3 {[%clk 0:03:01.5]}
2... g6 {[%clk 0:02:57.6]} 3. Nc3 {[%clk 0:03:00.9]} 3... d5 {[%clk 0:02:57.2]}
4. Bf4 {[%clk 0:03:00.9]} 4... Bg7 {[%clk 0:02:57.1]} 5. e3 {[%clk 0:03:01.6]}
5... O-O {[%clk 0:02:57.1]} 6. Nb5 {[%clk 0:03:02.2]} 6... Na6 {[%clk
0:02:56.5]} 7. h3 {[%clk 0:03:02.9]} 7... c6 {[%clk 0:02:55.7]} 8. Nc3 {[%clk
0:03:02.9]} 8... c5 {[%clk 0:02:49.4]} 9. Nb5 {[%clk 0:02:59.7]} 9... Bd7 {[%clk
0:02:46.6]} 10. c3 {[%clk 0:02:59.7]} 10... Qb6 {[%clk 0:02:26.2]} 11. a4 {[%clk
0:02:58.8]} 11... Rfc8 {[%clk 0:02:26.6]} 12. Be2 {[%clk 0:02:32.1]} 12... c4
{[%clk 0:02:20.7]} 13. b3 {[%clk 0:02:12.6]} 13... Bxb5 {[%clk 0:01:52.8]} 14.
axb5 {[%clk 0:02:13.5]} 14... Qxb5 {[%clk 0:01:53.2]} 15. Nd2 {[%clk 0:02:12.3]}
15... Qc6 {[%clk 0:01:49.7]} 16. O-O {[%clk 0:01:48.1]} 16... cxb3 {[%clk
0:01:41.2]} 17. Qxb3 {[%clk 0:01:47.1]} 17... Qxc3 {[%clk 0:01:19.9]} 18. Qxb7
{[%clk 0:01:46.9]} 18... Nc5 {[%clk 0:01:10.3]} 19. dxc5 {[%clk 0:01:40.6]}
19... Qxd2 {[%clk 0:01:10.6]} 20. Rxa7 {[%clk 0:01:22.6]} 20... Rxa7 {[%clk
0:00:30.5]} 21. Qxc8+ {[%clk 0:01:21.9]} 21... Bf8 {[%clk 0:00:30.9]} 22. Bh6
{[%clk 0:01:22.5]} 22... Nd7 {[%clk 0:00:29.5]} 23. c6 {[%clk 0:01:23.1]} 23...
Qa5 {[%clk 0:00:05.3]} 24. cxd7 {[%clk 0:01:15.7]} 24... Ra8 {[%clk 0:00:05.2]}
25. Bxf8 {[%clk 0:01:16.3]} 1-0

[Event "*** Titled Tuesday Blitz"]
[Site "Chess.com"]
[Date "2021.03.02"]
[Round "5"]
[White "igorcadilhac"]
[Black "heyjohnnypark"]
[Result "0-1"]
[WhiteElo "2408"]
[BlackElo "2609"]
[TimeControl "180+1"]
[EndTime "10:53:57 PST"]
[Termination "heyjohnnypark won by resignation"]

1. e4 {[%clk 0:03:00.9]} 1... e6 {[%clk 0:02:59.8]} 2. d4 {[%clk 0:03:00.1]}
2... d5 {[%clk 0:02:59.6]} 3. Nd2 {[%clk 0:03:00.1]} 3... a5 {[%clk 0:02:58.8]}
4. e5 {[%clk 0:02:54.1]} 4... a4 {[%clk 0:02:57.9]} 5. Bd3 {[%clk 0:02:44.1]}
5... c5 {[%clk 0:02:53.1]} 6. c3 {[%clk 0:02:43.1]} 6... Nc6 {[%clk 0:02:50.8]}
7. Ne2 {[%clk 0:02:42.8]} 7... cxd4 {[%clk 0:02:41.4]} 8. cxd4 {[%clk
0:02:42.5]} 8... Qb6 {[%clk 0:02:42]} 9. Nf3 {[%clk 0:02:42.2]} 9... Bb4+ {[%clk
0:02:26.1]} 10. Bd2 {[%clk 0:02:41.2]} 10... Nge7 {[%clk 0:02:18.9]} 11. O-O
{[%clk 0:02:40.7]} 11... Bxd2 {[%clk 0:02:18]} 12. Qxd2 {[%clk 0:02:40.9]} 12...
h6 {[%clk 0:02:18.6]} 13. Rac1 {[%clk 0:02:40.1]} 13... Bd7 {[%clk 0:02:16.4]}
14. Rc5 {[%clk 0:02:33.1]} 14... Nxd4 {[%clk 0:02:11.9]} 15. Rfc1 {[%clk
0:02:27.6]} 15... Nxf3+ {[%clk 0:02:08.8]} 16. gxf3 {[%clk 0:02:28.5]} 16... O-O
{[%clk 0:02:00.9]} 17. Rc7 {[%clk 0:02:24.2]} 17... Rfd8 {[%clk 0:01:46.4]} 18.
R7c3 {[%clk 0:02:14.4]} 18... Rac8 {[%clk 0:01:44.1]} 19. Ng3 {[%clk 0:02:09.5]}
19... Rxc3 {[%clk 0:01:43]} 20. Rxc3 {[%clk 0:02:08.2]} 20... Rc8 {[%clk
0:01:37.6]} 21. Rxc8+ {[%clk 0:02:04.8]} 21... Bxc8 {[%clk 0:01:32.9]} 22. Nh5
{[%clk 0:02:05.7]} 22... Qc5 {[%clk 0:01:02]} 23. Qf4 {[%clk 0:01:58.5]} 23...
Ng6 {[%clk 0:00:57.1]} 24. Qxa4 {[%clk 0:01:45.3]} 24... Qc1+ {[%clk 0:00:56.5]}
25. Kg2 {[%clk 0:01:45.2]} 25... Qg5+ {[%clk 0:00:54.7]} 26. Ng3 {[%clk
0:01:38.9]} 26... Nf4+ {[%clk 0:00:54.8]} 27. Kg1 {[%clk 0:01:36.8]} 27... Nxd3
{[%clk 0:00:48.1]} 28. Qe8+ {[%clk 0:01:36.7]} 28... Kh7 {[%clk 0:00:48.5]} 29.
Qxc8 {[%clk 0:01:37.6]} 29... Qd2 {[%clk 0:00:42.3]} 30. Kg2 {[%clk 0:01:24.6]}
30... Qxf2+ {[%clk 0:00:32.5]} 31. Kh3 {[%clk 0:01:24.9]} 31... Qxf3 {[%clk
0:00:30.4]} 32. Qc2 {[%clk 0:01:24.5]} 32... g6 {[%clk 0:00:30]} 33. Kh4 {[%clk
0:01:18.6]} 33... g5+ {[%clk 0:00:23.5]} 34. Kh3 {[%clk 0:01:18]} 34... Kg7
{[%clk 0:00:20]} 0-1

[Event "*** Titled Tuesday Blitz"]
[Site "Chess.com"]
[Date "2021.03.02"]
[Round "5"]
[White "The_Machine04"]
[Black "LEGENYA1998"]
[Result "1-0"]
[WhiteElo "2427"]
[BlackElo "2244"]
[TimeControl "180+1"]
[EndTime "10:54:00 PST"]
[Termination "The_Machine04 won by resignation"]

1. d4 {[%clk 0:02:30.2]} 1... Nf6 {[%clk 0:02:20]} 2. Bg5 {[%clk 0:02:28.4]}
2... e6 {[%clk 0:02:18.2]} 3. Nd2 {[%clk 0:02:27.9]} 3... h6 {[%clk 0:02:16.7]}
4. Bh4 {[%clk 0:02:26.8]} 4... d5 {[%clk 0:02:16.4]} 5. e3 {[%clk 0:02:26.1]}
5... Bd6 {[%clk 0:02:12.9]} 6. f4 {[%clk 0:02:25.2]} 6... Nbd7 {[%clk
0:02:12.7]} 7. Bd3 {[%clk 0:02:24.6]} 7... b6 {[%clk 0:02:10.2]} 8. Ngf3 {[%clk
0:02:23.9]} 8... Bb7 {[%clk 0:02:10.6]} 9. Ne5 {[%clk 0:02:23.9]} 9... O-O
{[%clk 0:02:10.2]} 10. c3 {[%clk 0:02:23.5]} 10... Qc8 {[%clk 0:02:10.1]} 11.
Qf3 {[%clk 0:02:22.4]} 11... c5 {[%clk 0:02:06.1]} 12. g4 {[%clk 0:02:21.7]}
12... Ne8 {[%clk 0:01:59.4]} 13. g5 {[%clk 0:02:15.6]} 13... hxg5 {[%clk
0:01:57.9]} 14. Bxg5 {[%clk 0:02:11.8]} 14... f5 {[%clk 0:01:53.1]} 15. O-O-O
{[%clk 0:02:06.2]} 15... Nef6 {[%clk 0:01:52.1]} 16. Rdg1 {[%clk 0:02:02.1]}
16... Re8 {[%clk 0:01:47]} 17. h4 {[%clk 0:02:00.2]} 17... Ne4 {[%clk
0:01:43.2]} 18. h5 {[%clk 0:01:53.6]} 18... Nxe5 {[%clk 0:01:34.5]} 19. fxe5
{[%clk 0:01:50.1]} 19... Be7 {[%clk 0:01:22.6]} 20. Bxe4 {[%clk 0:01:41.1]}
20... dxe4 {[%clk 0:01:17.9]} 21. Qg3 {[%clk 0:01:40.8]} 21... Qc7 {[%clk
0:00:59.2]} 22. h6 {[%clk 0:01:32.1]} 22... cxd4 {[%clk 0:00:50.5]} 23. Bf6
{[%clk 0:00:55.3]} 23... Bxf6 {[%clk 0:00:33.5]} 24. exf6 {[%clk 0:00:54.7]}
24... Qxg3 {[%clk 0:00:33.1]} 25. Rxg3 {[%clk 0:00:55]} 1-0

[Event "*** Titled Tuesday Blitz"]
[Site "Chess.com"]
[Date "2021.03.02"]
[Round "5"]
[White "Gabrielian_Artur"]
[Black "Trankuilizer"]
[Result "1-0"]
[WhiteElo "2791"]
[BlackElo "2568"]
[TimeControl "180+1"]
[EndTime "10:54:02 PST"]
[Termination "Gabrielian_Artur won by resignation"]

1. e4 {[%clk 0:03:00.9]} 1... e5 {[%clk 0:02:59.1]} 2. Nc3 {[%clk 0:03:00.7]}
2... Nf6 {[%clk 0:02:58.4]} 3. g3 {[%clk 0:03:01.1]} 3... Bc5 {[%clk 0:02:57.6]}
4. Bg2 {[%clk 0:03:00.9]} 4... O-O {[%clk 0:02:57.8]} 5. Nge2 {[%clk 0:03:00.6]}
5... Nc6 {[%clk 0:02:52.8]} 6. O-O {[%clk 0:03:00.1]} 6... a6 {[%clk 0:02:53.1]}
7. d3 {[%clk 0:03:00.3]} 7... h6 {[%clk 0:02:52.5]} 8. h3 {[%clk 0:02:59.5]}
8... d6 {[%clk 0:02:52.6]} 9. Kh2 {[%clk 0:02:59.5]} 9... Nd4 {[%clk 0:02:51.9]}
10. f4 {[%clk 0:02:53.3]} 10... Nxe2 {[%clk 0:02:42.9]} 11. Qxe2 {[%clk
0:02:48.5]} 11... exf4 {[%clk 0:02:43.1]} 12. Bxf4 {[%clk 0:02:29]} 12... Be6
{[%clk 0:02:39.1]} 13. Qd2 {[%clk 0:02:24]} 13... Nh7 {[%clk 0:02:28]} 14. Rae1
{[%clk 0:02:22.1]} 14... Bd4 {[%clk 0:02:22.1]} 15. Nd1 {[%clk 0:02:13.2]} 15...
a5 {[%clk 0:02:04.4]} 16. c3 {[%clk 0:02:12.9]} 16... Be5 {[%clk 0:02:04.3]} 17.
d4 {[%clk 0:02:12]} 17... Bxf4 {[%clk 0:02:04.2]} 18. gxf4 {[%clk 0:02:11.3]}
18... Bxa2 {[%clk 0:02:04.6]} 19. Ne3 {[%clk 0:02:06]} 19... Kh8 {[%clk
0:02:03.9]} 20. e5 {[%clk 0:02:01.7]} 20... c6 {[%clk 0:01:32.9]} 21. Qf2 {[%clk
0:01:58.9]} 21... f5 {[%clk 0:01:26.7]} 22. Qg3 {[%clk 0:01:50.9]} 22... dxe5
{[%clk 0:00:54.3]} 23. dxe5 {[%clk 0:01:42.6]} 23... Be6 {[%clk 0:00:54.1]} 24.
Rd1 {[%clk 0:01:42.4]} 24... Qe7 {[%clk 0:00:53.9]} 25. Rd6 {[%clk 0:01:42.2]}
25... Rfd8 {[%clk 0:00:49.6]} 26. Rfd1 {[%clk 0:01:38.3]} 26... Rxd6 {[%clk
0:00:49.5]} 27. exd6 {[%clk 0:01:30.9]} 27... Qf7 {[%clk 0:00:49.5]} 28. c4
{[%clk 0:01:23.4]} 28... Nf6 {[%clk 0:00:47.4]} 29. Qe1 {[%clk 0:01:13.2]} 29...
Bxc4 {[%clk 0:00:39.7]} 30. d7 {[%clk 0:00:52.8]} 30... Be6 {[%clk 0:00:36.3]}
31. d8=Q+ {[%clk 0:00:52.4]} 1-0

[Event "*** Titled Tuesday Blitz"]
[Site "Chess.com"]
[Date "2021.03.02"]
[Round "5"]
[White "Aisen1011"]
[Black "ZiggyStardust64"]
[Result "0-1"]
[WhiteElo "2237"]
[BlackElo "2631"]
[TimeControl "180+1"]
[EndTime "10:54:02 PST"]
[Termination "ZiggyStardust64 won on time"]

1. d4 {[%clk 0:02:59.8]} 1... Nf6 {[%clk 0:02:59]} 2. c4 {[%clk 0:03:00]} 2...
b6 {[%clk 0:02:59.1]} 3. Nc3 {[%clk 0:02:58.2]} 3... Bb7 {[%clk 0:02:59.2]} 4.
d5 {[%clk 0:02:58]} 4... e6 {[%clk 0:02:58.2]} 5. e4 {[%clk 0:02:57.9]} 5... Bb4
{[%clk 0:02:57.6]} 6. Qc2 {[%clk 0:02:51.4]} 6... Qe7 {[%clk 0:02:46.3]} 7. Be2
{[%clk 0:02:46.7]} 7... exd5 {[%clk 0:02:37.7]} 8. exd5 {[%clk 0:02:45.4]} 8...
Qe4 {[%clk 0:02:38.3]} 9. Qxe4+ {[%clk 0:02:40]} 9... Nxe4 {[%clk 0:02:39.2]}
10. Bd2 {[%clk 0:02:40.4]} 10... Bxc3 {[%clk 0:02:32.1]} 11. Bxc3 {[%clk
0:02:39.1]} 11... Nxc3 {[%clk 0:02:31.5]} 12. bxc3 {[%clk 0:02:40]} 12... O-O
{[%clk 0:02:31.9]} 13. Kd2 {[%clk 0:02:38.7]} 13... Na6 {[%clk 0:02:31.9]} 14.
Nf3 {[%clk 0:02:28.8]} 14... Nc5 {[%clk 0:02:31.9]} 15. Bd3 {[%clk 0:02:28.9]}
15... a5 {[%clk 0:02:27.1]} 16. Rhe1 {[%clk 0:02:26.1]} 16... Rfe8 {[%clk
0:02:26.7]} 17. Ne5 {[%clk 0:02:07.4]} 17... Ba6 {[%clk 0:02:19.5]} 18. Re3
{[%clk 0:01:56.1]} 18... f6 {[%clk 0:02:19.4]} 19. Nf3 {[%clk 0:01:35.6]} 19...
Rxe3 {[%clk 0:02:18.6]} 20. fxe3 {[%clk 0:01:32.7]} 20... Re8 {[%clk 0:02:18.3]}
21. Nd4 {[%clk 0:01:30.9]} 21... Nb7 {[%clk 0:02:06.1]} 22. Bf5 {[%clk
0:01:11.3]} 22... Re7 {[%clk 0:02:05.7]} 23. Bd3 {[%clk 0:00:45.5]} 23... g6
{[%clk 0:02:05.7]} 24. Rb1 {[%clk 0:00:40.4]} 24... Kg7 {[%clk 0:02:02.1]} 25.
h4 {[%clk 0:00:36.5]} 25... Re5 {[%clk 0:02:00.8]} 26. g4 {[%clk 0:00:34.4]}
26... Nd6 {[%clk 0:01:55.8]} 27. Nb5 {[%clk 0:00:29.1]} 27... Bxb5 {[%clk
0:01:55]} 28. cxb5 {[%clk 0:00:28.9]} 28... Rxd5 {[%clk 0:01:55]} 29. Ke2 {[%clk
0:00:27.3]} 29... Rc5 {[%clk 0:01:54.8]} 30. Kd2 {[%clk 0:00:27]} 30... Nc4+
{[%clk 0:01:53.9]} 31. Ke2 {[%clk 0:00:15.4]} 31... Ne5 {[%clk 0:01:53.7]} 32.
g5 {[%clk 0:00:11.4]} 32... Rxc3 {[%clk 0:01:46.6]} 33. Be4 {[%clk 0:00:09.9]}
33... f5 {[%clk 0:01:42.1]} 34. Bd5 {[%clk 0:00:09.9]} 34... Ng4 {[%clk
0:01:41.9]} 35. e4 {[%clk 0:00:04.7]} 35... fxe4 {[%clk 0:01:41.7]} 36. Kd2
{[%clk 0:00:01.4]} 36... Rd3+ {[%clk 0:01:40.9]} 0-1

[Event "*** Titled Tuesday Blitz"]
[Site "Chess.com"]
[Date "2021.03.02"]
[Round "5"]
[White "Heretoflag"]
[Black "FMOlexandrProhorov"]
[Result "0-1"]
[WhiteElo "2244"]
[BlackElo "2100"]
[TimeControl "180+1"]
[EndTime "10:54:02 PST"]
[Termination "FMOlexandrProhorov won on time"]

1. d4 {[%clk 0:03:00.9]} 1... Nf6 {[%clk 0:02:58.7]} 2. c4 {[%clk 0:03:00.2]}
2... c5 {[%clk 0:02:57.8]} 3. d5 {[%clk 0:03:00]} 3... b5 {[%clk 0:02:57.4]} 4.
cxb5 {[%clk 0:02:59]} 4... a6 {[%clk 0:02:57.1]} 5. f3 {[%clk 0:02:59]} 5...
Qa5+ {[%clk 0:02:53.9]} 6. Bd2 {[%clk 0:01:48.8]} 6... Qb6 {[%clk 0:02:52.4]} 7.
e4 {[%clk 0:01:43.9]} 7... axb5 {[%clk 0:02:42.3]} 8. a4 {[%clk 0:01:25.1]} 8...
bxa4 {[%clk 0:02:32.1]} 9. Rxa4 {[%clk 0:01:21.2]} 9... Rxa4 {[%clk 0:02:27.1]}
10. Qxa4 {[%clk 0:01:22.1]} 10... Qxb2 {[%clk 0:02:26.3]} 11. Nc3 {[%clk
0:01:21.9]} 11... g6 {[%clk 0:02:20.8]} 12. Bb5 {[%clk 0:01:02.6]} 12... Bg7
{[%clk 0:02:17.2]} 13. Qa8 {[%clk 0:00:47.4]} 13... O-O {[%clk 0:02:05.2]} 14.
Qxb8 {[%clk 0:00:40.3]} 14... Nh5 {[%clk 0:01:49.7]} 15. Nge2 {[%clk 0:00:22.5]}
15... d6 {[%clk 0:01:48.4]} 16. Qa7 {[%clk 0:00:13.1]} 16... f5 {[%clk
0:01:40.3]} 17. Qa2 {[%clk 0:00:11.4]} 17... Qb4 {[%clk 0:01:37.2]} 18. O-O
{[%clk 0:00:07.8]} 18... fxe4 {[%clk 0:01:36.6]} 19. fxe4 {[%clk 0:00:08.7]}
19... Rxf1+ {[%clk 0:01:35.5]} 20. Kxf1 {[%clk 0:00:08.4]} 20... Bg4 {[%clk
0:01:29.2]} 21. Qc4 {[%clk 0:00:07.9]} 21... Qb2 {[%clk 0:01:23.9]} 22. h3
{[%clk 0:00:06]} 22... Bxe2+ {[%clk 0:01:07.2]} 23. Qxe2 {[%clk 0:00:01.8]}
23... Ng3+ {[%clk 0:01:06.4]} 0-1